[Event "Mitropa Cup Women 2022"]
[Site "Corte"]
[Date "2022.05.04"]
[Round "5.2"]
[White "Medic, Mirjana"]
[Black "Brunello, Marina"]
[Result "0-1"]
[ECO "A46"]
[WhiteElo "2167"]
[BlackElo "2337"]
[Annotator "TA"]
[PlyCount "140"]
[EventDate "2022.04.30"]
[EventType "team-tourn"]
[EventCountry "FRA"]
[SourceTitle "playchess.com"]
[Source "ChessBase"]
[SourceQuality "1"]
[WhiteTeam "Croatia"]
[WhiteTeamCountry "CRO"]
[TimeControl "40/5400+30:1800+30"]

{[%evp 13,140,37,34,32,33,31,27,29,29,29,31,27,28,33,29,26,38,29,40,8,34,0,18,17,16,0,30,-116,25,0,54,-78,-81,-79,0,0,0,0,0,-152,-145,-115,55,-38,-14,-14,-14,-23,-22,-15,-29,-13,-20,-13,-17,-90,-106,-102,-109,-90,-87,-89,-92,-122,-131,-129,-26,-98,-38,-91,-92,-99,-85,-146,-149,-151,-147,-154,-155,-147,-146,-155,-159,-178,-178,-178,-171,-178,-178,-164,-164,-178,-164,-164,-164,-164,-156,-164,-149,-159,-159,-152,-163,-170,-171,-164,-164,-162,-135,-132,-118,-295,-287,-12840,-12840,-12841,-12842,-12844,-12841,-12841,-12842,-12842,-12843,-12843,-12843,-12845,-12844,-12850,-27999]} 1. d4 {[%emt 0:00:02]} Nf6 {[%emt 0:00:05]} 2. Nf3 {[%emt 0:00:16]} e6 {[%emt 0:05:50]} 3. e3 {[%emt 0:01:55]} b6 {[%emt 0:02:01]} 4. Bd3 {[%emt 0:02:38]} Bb7 {[%emt 0:00:07]} 5. O-O {[%emt 0:00:45]} c5 {[%emt 0:02:56]} 6. c4 {[%emt 0:01:12]} d6 {[%emt 0:03:34]} 7. Nc3 {[%emt 0:01:18]} Nbd7 {[%emt 0:00:05]} 8. Re1 {[%emt 0:07:12][%cal Od4d5] E14: Queen's Indian: Classical Variation (4 e3).} Be7 {[%emt 0:00:42]} 9. e4 {[%emt 0:07:36]} cxd4 {[%emt 0:00:58]} 10. Nxd4 {[%emt 0:00:02] White has an edge.} O-O {[%emt 0:00:28]} 11. Bf1 {[%emt 0:01:29]} a6 {[%emt 0:01:28]} 12. b3 {[%emt 0:06:42]} Rc8 {[%emt 0:00:34][%cal Ob6b5]} 13. Bb2 {[%emt 0:00:34]} Qc7 {[%emt 0:05:28]} 14. Rc1 {[%emt 0:00:51]} Qb8 {[%emt 0:00:09]} 15. Rc2 {[%emt 0:00:47]} Rfe8 {[%emt 0:01:03] [#]} 16. Bc1 $146 {[%emt 0:11:14]} ({Predecessor:} 16. Rd2 Bd8 17. Nc2 Bc7 18. g3 Ne5 19. Bg2 Rcd8 20. Ne3 Qa8 21. Qb1 h5 22. f4 {½-½ (59) Maisuradze,N (2271)-Leconte,M (2311) Nimes 2009}) 16... h6 {[%emt 0:03:54]} 17. f3 {[%emt 0:00:41]} Bd8 {[%emt 0:04:03]} 18. Be3 {[%emt 0:03:53]} Bc7 {[%emt 0:00:14]} 19. g3 {[%emt 0:00:34]} Ne5 {[%emt 0:12:02][%cal Ob6b5]} (19... b5 $5) 20. Bg2 {[%emt 0:01:50]} (20. a3 $11) 20... Ng6 {[%emt 0:08:03]} (20... b5 $1 $17 21. cxb5 Ba5) 21. Qd2 {[%emt 0:06:23]} h5 {[%emt 0:00:10]} (21... b5 $11) 22. Qf2 {[%emt 0:00:44]} (22. Bf1 $1 $14 {stays ahead.}) 22... h4 $1 $17 {[%emt 0:05:03]} 23. Nde2 {[%emt 0:01:18]} Ba8 {[%emt 0:06:52]} (23... d5 $17 {White must now prevent ...dxe4.} 24. cxd5 (24. Bxb6 dxe4 25. Bxc7 Qxc7 $15) 24... exd5 25. exd5 (25. Bxb6 $2 dxe4 26. fxe4 Bxe4 $19) 25... Bxd5) 24. Rec1 $11 {[%emt 0:02:28]} d5 {[%emt 0:08:24]} 25. cxd5 {[%emt 0:03:01]} (25. exd5 {is interesting.} exd5 26. cxd5 Ne5 27. Rd2) 25... exd5 {[%emt 0:00:07]} 26. Nxd5 {[%emt 0:02:13]} (26. Bh3 $11 dxe4 27. Nxe4 (27. Bxc8 exf3 28. Bf5 Ne5 $19) 27... Nxe4 28. fxe4 Bxe4 29. Rc4 (29. Bxc8 Bxc2 30. Bxa6 Be4 $15) 29... hxg3 30. hxg3) 26... Bxd5 $17 {[%emt 0:00:12]} 27. exd5 {[%emt 0:00:10]} Ne5 $2 {[%emt 0:00:07]} (27... hxg3 $17 28. hxg3 Nxd5) 28. Bf4 {[%emt 0:05:55] [#]} ({Not} 28. gxh4 $2 Nd3 29. d6 Bxd6 30. Rxc8 Bxh2+ 31. Kh1 Nxf2+ 32. Bxf2 Rxc8 $19) ({White should play} 28. Nf4 $14) 28... Nd3 $1 {[%emt 0:10:39]} 29. Rxc7 {[%emt 0:01:51]} Rxc7 {[%emt 0:00:11]} 30. Bxc7 {[%emt 0:00:08]} Qb7 {[%emt 0:00:17]} 31. Qxb6 {[%emt 0:03:15]} Qxb6+ {[%emt 0:00:11]} 32. Bxb6 {[%emt 0:00:02]} Nxc1 {[%emt 0:00:15]} 33. Nxc1 {[%emt 0:01:07]} Re1+ {[%emt 0:00:18]} 34. Kf2 {[%emt 0:00:01]} (34. Bf1 $11 Rxc1 35. d6) 34... Rxc1 {[%emt 0:00:06][%mdl 4096] Endgame KRN-KB} 35. d6 {[%emt 0:02:00]} Rc2+ {[%emt 0:07:48]} 36. Kg1 {[%emt 0:01:29]} hxg3 {[%emt 0:00:20]} 37. hxg3 {[%emt 0:00:02]} Rxa2 {[%emt 0:00:55]} 38. Bh3 {[%emt 0:05:39]} Rd2 {[%emt 0:00:59]} 39. Bc7 {[%emt 0:05:21] [#]} Rd3 {[%emt 0:06:15]} (39... Ne8 $1 $17 40. Bf1 Nxd6 41. Bxa6 Nf5) 40. b4 {[%emt 0:01:25]} (40. Kf2 $11 {remains equal.}) 40... Rd4 {[%emt 0:01:29]} ({Better is} 40... Ne8 $17 41. Bf1 Rd1) 41. Bf1 {[%emt 0:30:59]} (41. Kf2 $15) 41... Rxb4 {[%emt 0:30:53]} 42. Bxa6 {[%emt 0:00:03]} Rb2 {[%emt 0:00:00]} 43. Bc8 {[%emt 0:00:00]} (43. g4 $142) 43... Rd2 {[%emt 0:00:00]} 44. Bb8 {[%emt 0:00:00]} Ne8 {[%emt 0:00:00]} 45. d7 {[%emt 0:00:00]} Nf6 {[%emt 0:00:00]} 46. Bf4 {[%emt 0:00:00]} Rd5 {[%emt 0:00:00]} 47. Kg2 {[%emt 0:00:00]} Nxd7 {[%emt 0:00:00]} 48. g4 {[%emt 0:00:00]} Nc5 {[%emt 0:00:00]} 49. Bf5 {[%emt 0:00:00]} g6 {[%emt 0:00:00]} 50. Bc2 {[%emt 0:00:00]} Nd3 {[%emt 0:00:00]} 51. Bg3 {[%emt 0:00:00]} Rd4 {[%emt 0:00:00]} 52. Kf1 {[%emt 0:00:00]} Nc5 {[%emt 0:00:00]} 53. Ke2 {[%emt 0:00:00] Inhibits Rd2+.} Rc4 {[%emt 0:00:00]} 54. Kd2 {[%emt 0:00:00]} Ne6 {[%emt 0:00:00]} 55. Bd3 {[%emt 0:00:00]} Rb4 {[%emt 0:00:00] Hoping for ...Ng5.} 56. Be5 {[%emt 0:00:20]} Ra4 {[%emt 0:00:00]} 57. Ke3 {[%emt 0:02:10]} Nc5 {[%emt 0:00:00]} 58. Bb5 {[%emt 0:01:37]} Ra3+ {[%emt 0:00:00]} 59. Ke2 {[%emt 0:00:15]} Ne6 {[%emt 0:00:00] Against Bd4. ...Ra5 is the strong threat.} 60. Bc4 {[%emt 0:00:25]} Ng5 {[%emt 0:00:00]} 61. f4 {[%emt 0:00:54]} Nh3 {[%emt 0:06:57] Strongly threatening ...Ra4.} 62. Bd3 $2 {[%emt 0:01:09] [#] This move loses the game for White.} (62. g5 $17) 62... Nf2 $1 $19 {[%emt 0:01:22][%mdl 512]} 63. Kxf2 $2 {[%emt 0:03:16]} (63. Bb1 Nxg4 64. Bd6 Re3+ 65. Kd2) (63. Bc2 Nxg4) 63... Rxd3 {[%emt 0:00:05] KR-KB. Black is clearly winning.} 64. Bc7 {[%emt 0:00:24]} f6 {[%emt 0:00:24]} 65. Bb6 {[%emt 0:00:30]} Rh3 {[%emt 0:00:37]} 66. Kg2 {[%emt 0:00:15]} Rb3 {[%emt 0:00:04]} 67. Bd4 {[%emt 0:00:14]} Kf7 {[%emt 0:00:04]} 68. Kf2 {[%emt 0:00:16]} Ke6 {[%emt 0:00:05]} 69. Kg2 {[%emt 0:03:04]} f5 {[%emt 0:02:33]} 70. gxf5+ {[%emt 0:01:53]} Kxf5 {[%emt 0:00:04] Weighted Error Value: White=0.29 (precise) /Black=0.20 (precise)} (70... gxf5 $19 71. Kf2 Kd5) 0-1

[Event "Mitropa Cup Women 2022"]
[Site "Corte"]
[Date "2022.05.04"]
[Round "5.3"]
[White "Sedina, Elena"]
[Black "Berke, Ana"]
[Result "1-0"]
[ECO "B22"]
[WhiteElo "2258"]
[BlackElo "2142"]
[Annotator "TA"]
[PlyCount "128"]
[EventDate "2022.04.30"]
[EventType "team-tourn"]
[EventCountry "FRA"]
[SourceTitle "playchess.com"]
[Source "ChessBase"]
[SourceQuality "1"]
[TimeControl "40/5400+30:1800+30"]

{[%evp 13,128,8,12,0,0,14,4,16,46,47,50,47,54,33,76,41,44,54,39,29,122,26,31,37,36,22,47,46,102,20,18,22,20,0,0,0,11,1,27,17,31,28,45,16,54,47,256,231,238,224,252,167,167,162,147,156,180,180,173,135,146,65,287,216,210,91,77,0,193,8,158,73,132,110,145,110,233,221,220,43,43,18,20,18,22,14,11,23,25,11,172,170,168,82,221,221,374,371,349,254,352,0,380,363,522,504,480,319,291,0,429,221,206,250,390,375,29997]} 1. e4 {[%emt 0:01:21][%cal Be2e4,Be4e5][%mdl 32]} c5 {[%emt 0:00:08]} 2. c3 {[%emt 0:00:38]} Nf6 {[%emt 0:00:08]} 3. e5 {[%emt 0:00:06]} Nd5 {[%emt 0:00:26]} 4. Nf3 {[%emt 0:00:21]} e6 {[%emt 0:00:14]} 5. Bc4 {[%emt 0:00:27]} d6 {[%emt 0:00:22]} 6. d4 {[%emt 0:01:33]} cxd4 {[%emt 0:00:07]} 7. cxd4 {[%emt 0:00:06]} Be7 {[%emt 0:00:23]} 8. O-O {[%emt 0:02:22] B22: Sicilian: 2 c3.} O-O {[%emt 0:00:20]} 9. Qe2 {[%emt 0:01:31]} b6 {[%emt 0:02:35]} 10. Rd1 {[%emt 0:01:20] [#] The position is equal.} Qc7 $146 {[%emt 0:07:37]} ({Predecessor:} 10... Bb7 11. Bxd5 exd5 12. Nc3 Na6 13. Nb5 dxe5 14. dxe5 Nc7 15. Nxc7 Qxc7 16. Nd4 Rfe8 {1-0 (39) Matlakov,M (2674)-Caruana,F (2781) Chess.com INT 2022}) 11. Bxd5 {[%emt 0:12:47]} exd5 {[%emt 0:00:17]} 12. Nc3 {[%emt 0:00:06]} Ba6 {[%emt 0:14:44]} 13. Qe1 {[%emt 0:05:45]} Qb7 {[%emt 0:02:56]} 14. Bg5 {[%emt 0:27:17] White is more active.} (14. Bf4 $5 {[%cal Re5d6]}) 14... Bxg5 {[%emt 0:06:55]} 15. Nxg5 {[%emt 0:00:02] aiming for e6.} h6 {[%emt 0:08:44]} 16. Nf3 {[%emt 0:05:27] Pair of Knights!} (16. Nh3 $5 {[%cal Rh3f4]}) 16... Nd7 {[%emt 0:04:06]} (16... Re8 $11) 17. Qd2 {[%emt 0:05:15]} ({But not} 17. exd6 $6 Qc6 $11) (17. Nh4 $1 $16 {[%cal Rh4f5]}) 17... Rad8 {[%emt 0:07:58]} 18. Qf4 dxe5 19. dxe5 {[%emt 0:18:47]} Nc5 {[%emt 0:02:10]} 20. Nd4 {[%emt 0:00:37]} Bd3 {[%emt 0:15:26]} (20... Qd7 $14) 21. b4 {[%emt 0:07:48]} (21. Qe3 $16) 21... Ne6 $11 {[%emt 0:00:30]} 22. Qg4 {[%emt 0:00:10]} Nxd4 {[%emt 0:01:54]} 23. Qxd4 {[%emt 0:01:03]} Bc4 {[%emt 0:02:46]} 24. Re1 {[%emt 0:02:58]} Rfe8 {[%emt 0:01:48]} 25. f4 Qd7 {[%emt 0:01:22]} 26. Rad1 {[%emt 0:01:11][%cal Oc3e4]} Qf5 {[%emt 0:00:49] Prevents Ne4.} 27. h3 {[%emt 0:00:32]} h5 {[%emt 0:01:05]} 28. Kh1 {[%emt 0:01:02]} Re6 {[%emt 0:04:09]} 29. Ne4 {[%emt 0:02:10]} dxe4 $2 30. Qxd8+ $18 {[%emt 0:00:06]} Kh7 {[%emt 0:08:55]} 31. Qd2 {[%emt 0:01:32]} f6 {[%emt 0:00:52]} 32. exf6 {[%emt 0:01:27]} Rxf6 {[%emt 0:00:26]} 33. Qe3 {[%emt 0:00:10]} Bd3 {[%emt 0:00:29]} 34. Rc1 a5 {[%emt 0:00:57]} 35. bxa5 {[%emt 0:01:22]} Qxa5 36. Qf2 {[%emt 0:00:21]} Qf5 {[%emt 0:01:03]} 37. Re3 {[%emt 0:00:38]} ({White should try} 37. Qh4 $16) 37... b5 $2 {[%emt 0:01:44]} (37... g5 $1 $14) 38. Rg3 {[%emt 0:00:21]} Bc4 {[%emt 0:01:17]} 39. Rd1 {[%emt 0:00:35]} (39. Qa7 $6 Rf7 40. Qb6 Rf6 $16) (39. a4 $1 $18 {and White stays clearly on top.}) 39... Bd3 {[%emt 0:00:40]} 40. Rc1 {[%emt 0:00:13]} (40. Qa7 $16 {[%csl Gg3][%cal Ra7g7]} Rf7 41. Qb6) 40... Bc4 $1 {[%emt 0:00:22]} 41. a3 $2 {[%emt 0:30:44]} ({Don't take} 41. Qa7 $6 Rf7 42. Qb6 Rf6 $16) (41. a4 $18) 41... g6 {[%emt 0:32:37]} (41... Qxf4 42. Qxf4 Rxf4 43. Kh2 $16) ({Black should play} 41... g5 $1 $11) 42. Qd2 {[%emt 0:00:00]} (42. a4 $142 {Threatens to win with axb5.} Qxf4 43. Qxf4 Rxf4 44. axb5 Bxb5 45. Rc5 Rf1+ 46. Kh2) 42... Rf7 {[%emt 0:00:00]} (42... Qxf4 $142 43. Qxf4 Rxf4) 43. Rgc3 {[%emt 0:00:00][%cal Oa3a4]} Kh6 {[%emt 0:00:00]} 44. Re1 {[%emt 0:00:00]} Rf6 {[%emt 0:00:00]} (44... Qxf4 $16 45. Qd4 Bd3) 45. Qd4 {[%emt 0:00:00]} Bd3 {[%emt 0:00:00] [#]} 46. Qe5 $2 {[%emt 0:00:00]} ({Don't do} 46. Rc8 $6 Qxf4 47. Rh8+ Kg5 48. Qd5+ Kh4 $16) (46. Rc6 $1 $18 {[%cal Rc6f6][%mdl 512]} Rf8 (46... Rf7 47. Rec1) 47. Qd6) 46... Qxf4 $14 {[%emt 0:00:00]} 47. Qxf4+ {[%emt 0:00:00]} Rxf4 {[%emt 0:00:00][%mdl 4096] Endgame KRR-KRB} 48. Kg1 {[%emt 0:00:00]} Rf6 {[%emt 0:00:00]} 49. Rec1 {[%emt 0:00:01]} Kg5 {[%emt 0:00:00]} 50. Rc6 {[%emt 0:03:16][%cal Oh3h4]} Rf7 {[%emt 0:00:00]} (50... Rxc6 $2 51. Rxc6 Kf5 52. Kf2 $18) 51. Re6 {[%emt 0:00:40]} Ra7 $2 {[%emt 0:01:15]} (51... h4 $11) 52. Rc5+ $18 {[%emt 0:00:29]} Kh6 {[%emt 0:01:10]} 53. Rcc6 {[%emt 0:01:29]} (53. h4 $18) 53... Rg7 {[%emt 0:00:06]} (53... Kg5 $16 {is a better defense.}) 54. Kf2 {[%emt 0:00:18]} h4 $2 {[%emt 0:02:36]} (54... Kh7 55. h4 Bc4) 55. Ke3 {[%emt 0:00:11]} Kg5 {[%emt 0:00:25]} 56. Re5+ {[%emt 0:00:48]} Kh6 {[%emt 0:00:17]} 57. Ree6 {[%emt 0:00:24]} Kg5 $1 {[%emt 0:00:06]} 58. Rf6 {[%emt 0:00:19]} Rg8 (58... Bc4 {was worth a try.} 59. Kxe4 Ba2) 59. Rf4 {[%emt 0:01:03]} Kh5 {[%emt 0:02:08]} 60. Rf7 {[%emt 0:00:34]} Kg5 {[%emt 0:02:19]} 61. Rf4 {[%emt 0:00:32]} (61. Rb6 $142) 61... Kh5 {[%emt 0:00:08]} 62. Rc5+ {[%emt 0:00:35]} (62. Rc7 $142 g5 63. Rf6) 62... g5 {[%emt 0:00:31]} 63. Rf6 {[%emt 0:00:03] And now Rc7 would win.} Rg7 {[%emt 0:00:27] Prevents Rc7.} (63... Rg6 $142 64. Rff5 Kh6) 64. Rcc6 {[%emt 0:00:33][%csl Gc6][%cal Rf6h6]} g4 $2 {Weighted Error Value: White=0.55/Black=0.42} (64... Rh7 $18 65. Rb6 Rh8) 1-0

[Event "Mitropa Cup Women 2022"]
[Site "Corte"]
[Date "2022.05.04"]
[Round "5.3"]
[White "Mihok-Juhasz, Barbara"]
[Black "Bashylina, Luisa"]
[Result "1/2-1/2"]
[ECO "B51"]
[WhiteElo "2207"]
[BlackElo "2043"]
[Annotator "TA"]
[PlyCount "84"]
[EventDate "2022.04.30"]
[EventType "team-tourn"]
[EventCountry "FRA"]
[SourceTitle "playchess.com"]
[Source "ChessBase"]
[SourceQuality "1"]
[WhiteTeam "Hungary"]
[BlackTeam "Germany"]
[WhiteTeamCountry "HUN"]
[BlackTeamCountry "GER"]
[TimeControl "40/5400+30:1800+30"]

{[%evp 9,84,3,2,9,14,13,16,22,33,31,26,10,18,21,19,14,28,20,41,26,102,110,95,83,141,60,166,142,171,162,175,180,145,154,213,214,273,245,348,297,364,331,350,342,463,470,483,479,547,524,511,492,475,433,631,623,1002,619,641,614,608,593,543,0,741,11,38,11,62,0,0,0,0,-176,0,0,45]} 1. e4 {[%emt 0:00:03]} c5 {[%emt 0:00:03]} 2. Nf3 {[%emt 0:00:05]} d6 {[%emt 0:00:04]} 3. Bb5+ {[%emt 0:00:05]} Nd7 {[%emt 0:00:04]} 4. a4 {[%emt 0:00:05]} a6 {[%emt 0:01:32]} 5. Be2 {[%emt 0:00:05]} Ngf6 {[%emt 0:02:24]} 6. Nc3 {[%emt 0:00:06] B51: Sicilian: Moscow Variation (3 Bb5+) without 3...Bd7.} b6 {[%emt 0:04:31]} 7. d4 {[%emt 0:02:10]} cxd4 {[%emt 0:01:20]} 8. Qxd4 {[%emt 0:00:05]} e5 {[%emt 0:04:58]} 9. Qe3 {[%emt 0:00:25]} Be7 {[%emt 0:03:44]} 10. O-O {[%emt 0:01:34]} O-O {[%emt 0:01:11]} 11. Rd1 {[%emt 0:06:40]} Bb7 {[%emt 0:05:04]} 12. Nd2 {[%emt 0:01:14]} Rc8 {[%emt 0:08:15]} 13. Nc4 {[%emt 0:06:54]} Qc7 {[%emt 0:04:17] [#]} 14. b4 $146 {[%emt 0:04:36] Against Nc5} ({Predecessor:} 14. b3 Nc5 15. Bf3 Ne6 16. Ba3 Nd4 17. Rxd4 exd4 18. Qxd4 Nd7 19. Nd5 Bxd5 20. Qxd5 {1-0 (50) Alsina Leal,D (2462)-Verstraeten,R (2365) El Prat de Llobregat 2019}) 14... Nxe4 {[%emt 0:06:14]} 15. Nxe4 $16 {[%emt 0:03:27]} d5 {[%emt 0:00:24]} 16. Qh3 {[%emt 0:01:11]} Nb8 {[%emt 0:02:41]} (16... Rcd8 $142) 17. Qg3 {[%emt 0:28:02]} (17. Ng5 $1 $16 Bxg5 18. Bxg5) 17... dxe4 {[%emt 0:19:29]} (17... dxc4 $14 18. Bh6 g6 19. Bxf8 Rxf8) 18. Bh6 $1 $18 {[%emt 0:01:26][%csl Gh6][%cal Rg3g7]} Bf6 {[%emt 0:01:04]} 19. Nd6 $40 {[%emt 0:09:30][%mdl 128] Hoping for Nf5. White attacks with force.} e3 {[%emt 0:08:47]} 20. Nxc8 {[%emt 0:09:44]} (20. Bxe3 $6 Rcd8 21. Nxb7 Qxb7 $16) 20... exf2+ {[%emt 0:00:08]} 21. Qxf2 {[%emt 0:00:08]} Rxc8 {[%emt 0:01:14]} (21... Bxc8 $16 {might work better.} 22. Be3 Nd7) 22. Be3 {[%emt 0:00:11]} e4 {[%emt 0:04:31]} 23. Rab1 {[%emt 0:05:04]} (23. Bxb6 $6 Qxc2 24. Bd4 Nd7 $18) 23... Nc6 {[%emt 0:04:10]} (23... Nd7 {was necessary.} 24. Bg4 Rd8) 24. Bg4 {[%emt 0:04:09]} Re8 {[%emt 0:01:45]} 25. Bxb6 {[%emt 0:00:49]} Qe5 {[%emt 0:02:23]} 26. Be3 {[%emt 0:00:28] Inhibits Qg5.} Bg5 {[%emt 0:04:16]} 27. Bd7 {[%emt 0:02:17]} Rf8 {[%emt 0:00:52]} 28. c4 {[%emt 0:04:53]} Ne7 {[%emt 0:03:34]} 29. b5 {[%emt 0:02:06]} h6 {[%emt 0:02:49]} 30. Bxg5 {[%emt 0:02:07]} Qxg5 {[%emt 0:00:26]} 31. Rb3 {[%emt 0:00:46][%cal Bb1b3,Bb3e3,Be3g3][%mdl 32] Prevents e3.} e3 {[%emt 0:01:11]} (31... Rd8 $142 32. Rg3 (32. Qb6 Rxd7 33. Rxd7 Qc1+ 34. Kf2 Qc2+ 35. Ke1 Qxb3 $16) 32... Qh5) 32. Rxe3 {[%emt 0:00:13]} Rd8 {[%emt 0:01:39][%cal Bf8d8,Bd8d4,Bd4f4][%mdl 32]} 33. Rg3 {[%emt 0:01:10]} Qh5 {[%emt 0:00:26]} 34. Rd4 {[%emt 0:00:44] Strongly threatening Bg4.} Qe5 {[%emt 0:01:05]} 35. Qe3 {[%emt 0:01:10]} Qf6 {[%emt 0:00:30] [#]} 36. Qf2 $2 {[%emt 0:02:02]} (36. Rf4 $1 $18 Qd6 37. Bh3) 36... Nf5 $2 {[%emt 0:00:26][%mdl 8192]} 37. Bxf5 $2 {[%emt 0:01:28]} Rxd4 $11 {[%emt 0:00:12]} 38. Bd3 {[%emt 0:00:30] Intending Qxf6 and mate.} Rf4 {[%emt 0:00:41] [#]} 39. Qe1 {[%emt 0:00:26]} (39. Re3 $1 $14 g6 40. Qe1 (40. Re8+ Kh7 $11)) 39... Qd4+ {[%emt 0:00:21]} 40. Kh1 {[%emt 0:00:54][%cal Re1e8]} Be4 {[%emt 0:01:08]} 41. Bf1 {[%emt 0:04:05] [#]} (41. Be2 $11) 41... h5 $2 {[%emt 0:06:57]} (41... Qd2 $3 $19 {[%mdl 512]} 42. Qa1 g5) 42. h3 {[%emt 0:06:45]} Qe5 {[%emt 0:14:54] Black escapes into a draw.  Weighted Error Value: White=0.57/Black=0.40} 1/2-1/2

[Event "Mitropa Cup Women 2022"]
[Site "Corte"]
[Date "2022.05.04"]
[Round "5.4"]
[White "Radikovic, Anamarija"]
[Black "Gabbani, Sara"]
[Result "1-0"]
[ECO "B30"]
[WhiteElo "2133"]
[BlackElo "1831"]
[Annotator "TA"]
[PlyCount "61"]
[EventDate "2022.04.30"]
[EventType "team-tourn"]
[EventCountry "FRA"]
[SourceTitle "playchess.com"]
[Source "ChessBase"]
[SourceQuality "1"]
[TimeControl "40/5400+30:1800+30"]

{[%evp 9,61,71,60,55,107,98,113,101,95,106,246,105,132,105,287,290,274,279,435,398,419,387,441,372,558,596,1088,912,888,527,857,0,857,522,663,564,556,532,625,622,926,919,939,929,1123,1127,1044,1076,29985,29984,29992,29993,29994,29995]} 1. e4 {[%emt 0:00:01]} c5 {[%emt 0:00:06]} 2. Nf3 {[%emt 0:00:04]} Nc6 {[%emt 0:00:09]} 3. Bb5 {[%emt 0:00:05]} Nd4 {[%emt 0:04:18]} 4. Nxd4 {[%emt 0:04:09]} cxd4 {[%emt 0:00:06]} 5. c3 {[%emt 0:01:49]} Qb6 {[%emt 0:05:38]} 6. Bc4 {[%emt 0:05:51] B30: Sicilian: 2...Nc6 3 Bb5, lines without ...g6.} g6 {[%emt 0:03:56]} (6... e6 $14) 7. cxd4 $16 {[%emt 0:03:34]} ({But not} 7. Qf3 Nf6 $14) 7... Qxd4 {[%emt 0:02:12]} 8. d3 {[%emt 0:00:05] White is better.} Bg7 {[%emt 0:03:26]} 9. Nc3 {[%emt 0:01:42] [#]} e6 $146 {[%emt 0:11:23] [#]} (9... Qd6 $16) ({Predecessor:} 9... Nf6 10. Be3 Qd6 11. f4 Qb4 12. a3 Qxb2 13. Na4 Qxg2 14. Rg1 Qh3 15. Bf2 O-O 16. Rb1 d5 17. exd5 Ng4 18. Bc5 b6 19. Bxe7 Qe3+ {0-1 (19) Kovar,V (2312)-Liska,J (1865) Liberec 2013}) 10. Be3 {[%emt 0:06:56]} (10. Nb5 $1 $18 {[%cal Rb5d4] and the rest is easy.} Qe5 11. Qf3) 10... Qd6 {[%emt 0:01:12]} 11. Nb5 {[%emt 0:05:27][%csl LRa7,LRd6] White is more active.} Qc6 {[%emt 0:07:26]} (11... Qb4+ $2 12. Bd2 Qc5 13. Qb3 $18) (11... Qb8 $16) 12. Bf4 $18 {[%emt 0:13:02]} e5 {[%emt 0:02:04]} 13. Rc1 {[%emt 0:04:23]} Kf8 {[%emt 0:05:06]} (13... exf4 {keeps fighting.} 14. Bxf7+ (14. Nc7+ Qxc7 15. Bxf7+ Kd8 $14) 14... Kxf7 15. Rxc6 dxc6) 14. Bd2 {[%emt 0:02:04] aiming for Bb4+.} Ne7 {[%emt 0:03:12]} 15. Bb4 {[%emt 0:06:35]} Bh6 {[%emt 0:04:38]} 16. Rc2 {[%emt 0:00:54] Hoping for Qf3.} Qb6 {[%emt 0:10:37]} (16... d5 $142) 17. Qf3 {[%emt 0:07:36][%csl Gc4][%cal Rf3f7]} f6 {[%emt 0:01:33]} 18. Bd6 {[%emt 0:00:05]} Bg7 {[%emt 0:01:08]} 19. Bc7 {[%emt 0:05:09]} Qc5 {[%emt 0:02:23]} 20. Bd6 {[%emt 0:02:35]} Qb6 {[%emt 0:00:14]} 21. Bxe5 {[%emt 0:00:27] Threatens to win with 0-0.} a6 {[%emt 0:04:55] [#]} 22. Bd4 $1 {[%cal Be5d4,Bd4c5,Bc5d6][%mdl 32]} Qc6 {[%emt 0:01:12]} 23. Nc3 {[%emt 0:04:13]} f5 {[%emt 0:01:36]} 24. Qe3 {[%emt 0:03:37]} Qd6 {[%emt 0:02:04]} 25. Bc5 {[%emt 0:01:32]} f4 {[%emt 0:03:40]} 26. Bxd6 {[%emt 0:01:00]} Bxc3+ {[%emt 0:00:23]} 27. bxc3 {[%emt 0:01:09]} fxe3 {[%emt 0:00:08]} 28. fxe3 {[%emt 0:01:16]} h5 {[%emt 0:03:18]} 29. O-O+ {[%emt 0:00:17] White mates.} Ke8 {[%emt 0:00:06]} 30. Rf7 {[%emt 0:00:12]} Nc6 {[%emt 0:03:47]} 31. Rcf2 {[%emt 0:00:07] Weighted Error Value: White=0.74/Black=0.93} 1-0